[Event "26th Womens ECCC 2022"]
[Site "Mayrhofen"]
[Date "2022.10.06"]
[Round "4.8"]
[White "Heinemann, Josefine"]
[Black "Paehtz, Elisabeth"]
[Result "1/2-1/2"]
[ECO "B12"]
[WhiteElo "2318"]
[BlackElo "2469"]
[Annotator "TA"]
[PlyCount "140"]
[EventDate "2022.10.03"]
[EventType "team-tourn"]
[EventCountry "AUT"]
[SourceTitle "playchess.com"]
[Source "ChessBase"]
[SourceQuality "1"]
[TimeControl "40/5400+30:1800+30"]

{[%evp 12,140,32,18,28,14,35,21,34,27,30,31,27,29,32,8,58,22,24,15,30,0,13,13,19,16,36,37,39,50,72,18,72,68,81,7,9,-22,-18,-30,-10,-10,-9,-10,-12,-10,0,0,9,8,11,8,9,0,0,-112,-112,-112,-112,-112,-112,-112,-112,-120,-32,-31,0,-127,-96,-96,-96,-96,-15,-16,0,-96,-96,-96,-28,-29,0,-105,-96,-96,-96,-96,-96,-96,-96,-96,-96,-96,-96,-96,-96,-96,-96,-129,-96,-96,-96,-129,-113,-129,-106,-129,-129,-129,-129,-129,-129,-129,-129,-129,-129,-129,-129,-129,-129,-129,-129,-129,-129,-129,-54,-54,-8,-8,0,-8,-8]} 1. e4 {[%emt 0:00:03]} c6 {[%emt 0:00:02]} 2. d4 {[%emt 0:00:06]} d5 {[%emt 0:00:03]} 3. e5 {[%emt 0:00:06]} Bf5 {[%emt 0:00:04]} 4. Nf3 {[%emt 0:00:20]} e6 {[%emt 0:00:04]} 5. Be2 {[%emt 0:00:04]} Nd7 {[%emt 0:00:07]} 6. O-O {[%emt 0:00:41]} h6 {[%emt 0:00:03]} 7. Nbd2 {[%emt 0:01:19]} Ne7 {[%emt 0:00:05] B12: Caro-Kann: Advance Variation.} 8. Nb3 {[%emt 0:01:42]} a5 {[%emt 0:00:26]} 9. a4 {[%emt 0:01:04]} Qb6 {[%emt 0:00:14]} 10. h3 {[%emt 0:03:30]} Bh7 {[%emt 0:00:07]} 11. Bd2 {[%emt 0:06:38]} Ng6 {[%emt 0:00:05] [#]} 12. Bd3 $146 {[%emt 0:05:08]} ({Predecessor:} 12. Qe1 Bb4 13. Bxb4 Qxb4 14. Qxb4 axb4 15. Bd3 c5 16. Nxc5 Nxc5 17. dxc5 Ra5 18. Bb5+ {1-0 (44) So,W (2770)-Carlsen,M (2862) chess24.com INT 2020}) 12... Be7 {[%emt 0:09:30]} 13. g3 {[%emt 0:05:36]} Qc7 {[%emt 0:12:02]} (13... O-O $11) 14. Rc1 {[%emt 0:07:05]} O-O {[%emt 0:03:28]} 15. h4 {[%emt 0:03:35]} Rfd8 {[%emt 0:12:41]} 16. Qe2 {[%emt 0:12:16]} c5 {[%emt 0:09:01]} 17. c4 {[%emt 0:05:54] Strongly threatening cxd5.} Qb6 {[%emt 0:07:07]} 18. Nxa5 {[%emt 0:08:00]} cxd4 {[%emt 0:07:08]} 19. cxd5 {[%emt 0:01:01]} exd5 {[%emt 0:16:49]} 20. b4 {[%emt 0:03:22] Inhibits Nc5.} Re8 {[%emt 0:07:59]} 21. Bb5 {[%emt 0:07:00] White is more active.} ({Better is} 21. h5 $16 Ngf8 22. Bxh7+ Kxh7 23. Nb3) 21... Ngf8 {[%emt 0:00:39]} (21... d3 $1 $11 22. Bxd3 Bf8) 22. Nb3 $16 {[%emt 0:01:56]} d3 {[%emt 0:02:34]} 23. Qe3 {[%emt 0:04:34]} (23. Bxd3 $16 {Black must now prevent a5.} Bxd3 24. Qxd3) 23... Qxe3 $11 {[%emt 0:00:34]} 24. Bxe3 {[%emt 0:00:18] Rc7 is the strong threat.} (24. fxe3 $5 {[%cal Rc1c7]} Rec8 25. a5 $11) 24... Bxb4 {[%emt 0:05:23]} 25. Rc7 {[%emt 0:01:39][%csl LRb7,LRd7]} Nxe5 {[%emt 0:03:39]} 26. Nxe5 {[%emt 0:01:02]} Rxe5 {[%emt 0:00:04]} 27. Rxb7 {[%emt 0:00:38]} Ne6 {[%emt 0:01:48]} 28. Rd1 {[%emt 0:03:26]} d4 {[%emt 0:00:54]} 29. Nxd4 {[%emt 0:05:48]} Nxd4 {[%emt 0:00:03]} 30. Bxd4 {[%emt 0:00:04]} Re1+ {[%emt 0:00:29]} 31. Rxe1 {[%emt 0:00:05]} Bxe1 {[%emt 0:00:02]} 32. Be3 {[%emt 0:06:39]} Rd8 {[%emt 0:01:20] Hoping for ...d2.} 33. Rd7 {[%emt 0:02:06]} (33. Bb6 $1 $11 d2 34. Be2) 33... Rxd7 $17 {[%emt 0:00:06]} 34. Bxd7 {[%emt 0:00:03][%mdl 4096] Endgame KBB-KBB} d2 $1 {[%emt 0:01:14]} 35. Bg4 {[%emt 0:00:05]} Bc2 {[%emt 0:00:11] Prevents Bd1.} 36. Kf1 {[%emt 0:00:04]} Bxa4 {[%emt 0:00:18]} 37. h5 {[%emt 0:00:27]} Bb5+ {[%emt 0:01:05]} (37... Bc2 $17 38. Bf3 f6) 38. Kg2 $15 {[%emt 0:00:47]} Ba4 {[%emt 0:00:52]} (38... g6 $15 39. hxg6 fxg6 40. Bxh6 Ba4) 39. Kf1 $17 {[%emt 0:00:03]} f5 {[%emt 0:00:20]} 40. Bf3 {[%emt 0:00:04]} Bb3 {[%emt 0:01:01]} 41. Bf4 {[%emt 0:35:09]} Bc4+ {[%emt 0:01:03]} (41... Kf7 $17 42. Be5 Bxf2 $1 43. Kxf2 d1=Q 44. Bxd1 Bxd1) 42. Kg2 $11 {[%emt 0:00:00]} Bb3 {[%emt 0:03:56]} (42... Kf7 $11) 43. Kf1 $17 {[%emt 0:00:00]} Kf7 {[%emt 0:00:06]} 44. Be5 {[%emt 0:00:00]} Bc4+ {[%emt 0:00:12]} (44... Bc2 $17) 45. Kg1 $1 $11 {[%emt 0:00:00] [#]} Bb3 {[%emt 0:01:05]} ({Black should play} 45... Bxf2+ $1 $11 46. Kxf2 Bb3) 46. Kf1 $17 {[%emt 0:00:00]} Bxf2 {[%emt 0:11:05]} 47. Kxf2 {[%emt 0:00:00]} d1=Q {[%emt 0:00:03]} 48. Bxd1 {[%emt 0:00:00]} Bxd1 {[%emt 0:00:02] KB-KB} 49. Bc3 {[%emt 0:00:00]} Bxh5 {[%emt 0:00:05]} 50. Bd4 {[%emt 0:00:00]} Bd1 {[%emt 0:00:40]} 51. Bc3 {[%emt 0:00:00]} g5 {[%emt 0:00:16]} 52. Bb4 {[%emt 0:00:00]} Kg7 {[%emt 0:00:15]} 53. Bc5 {[%emt 0:00:00]} Kg6 {[%emt 0:00:32]} 54. Bf8 {[%emt 0:00:00]} Bb3 {[%emt 0:00:34]} 55. Ke3 {[%emt 0:00:00]} Bd5 {[%emt 0:00:13]} 56. Kf2 {[%emt 0:00:00]} h5 {[%emt 0:02:20]} 57. Be7 {[%emt 0:00:00]} Bb7 {[%emt 0:01:11]} 58. Bd8 {[%emt 0:00:00]} f4 {[%emt 0:00:11]} 59. gxf4 {[%emt 0:00:00]} gxf4 {[%emt 0:00:05]} 60. Bb6 {[%emt 0:00:00]} Kf5 {[%emt 0:00:05]} 61. Bc5 {[%emt 0:00:00]} Kg4 {[%emt 0:00:06]} 62. Bb6 {[%emt 0:00:00]} h4 {[%emt 0:00:05]} 63. Bc5 {[%emt 0:00:00]} h3 {[%emt 0:00:03]} 64. Kg1 {[%emt 0:00:00]} Kg3 {[%emt 0:00:05]} 65. Bf2+ {[%emt 0:00:00]} Kf3 {[%emt 0:00:03][%cal Oh3h2] ( -> ...h2+!)} 66. Bc5 {[%emt 0:00:00]} Ke2 {[%emt 0:00:28]} 67. Bd6 {[%emt 0:00:00]} f3 {[%emt 0:00:07]} (67... Ke3 $17) 68. Bc5 $15 {[%emt 0:00:00]} f2+ {[%emt 0:00:11]} (68... Bc8 $15) 69. Bxf2 $11 {[%emt 0:00:00]} h2+ {[%emt 0:00:03]} 70. Kxh2 {[%emt 0:00:00]} Kxf2 {[%emt 0:00:03] Weighted Error Value: White=0.12 (very precise) /Black=0.18 (very precise)} 1/2-1/2

[Event "26th Womens ECCC 2022"]
[Site "Mayrhofen"]
[Date "2022.10.06"]
[Round "4.9"]
[White "Mammadzada, Gunay"]
[Black "Kashlinskaya, Alina"]
[Result "0-1"]
[ECO "A50"]
[WhiteElo "2483"]
[BlackElo "2482"]
[Annotator "TA"]
[PlyCount "80"]
[EventDate "2022.10.03"]
[EventType "team-tourn"]
[EventCountry "AUT"]
[SourceTitle "playchess.com"]
[Source "ChessBase"]
[SourceQuality "1"]
[TimeControl "40/5400+30:1800+30"]

{[%evp 14,80,22,14,12,6,19,0,0,0,0,0,0,0,0,-7,10,4,4,0,38,49,40,48,41,53,46,19,31,17,22,25,28,53,52,61,72,86,97,85,110,-65,-28,-52,-57,-77,-50,-99,-96,-249,-240,-224,-131,-147,-119,-258,-247,-277,-225,-398,-390,-1175,-1153,-2022,-1946,-6479,-6341,-5102,-2589]} 1. d4 {[%emt 0:00:10]} Nf6 {[%emt 0:00:09]} 2. c4 {[%emt 0:00:04]} g6 {[%emt 0:00:07]} 3. h4 {[%emt 0:00:27][%cal Bh2h4,Bh4h5,Bh5h6][%mdl 32]} Bg7 {[%emt 0:06:22]} 4. Nc3 {[%emt 0:00:33]} d6 {[%emt 0:06:26]} 5. e4 {[%emt 0:00:48]} O-O {[%emt 0:01:36]} 6. Be2 {[%emt 0:00:32]} c5 {[%emt 0:02:39]} 7. d5 {[%emt 0:00:07]} e6 {[%emt 0:00:04]} 8. h5 {[%emt 0:01:17]} exd5 {[%emt 0:00:04] E73: King's Indian: Averbakh Variation without 6...c5.} 9. exd5 {[%emt 0:00:03]} Re8 {[%emt 0:00:05]} 10. h6 {[%emt 0:06:10]} Bh8 {[%emt 0:00:05] The position is equal.} 11. Bg5 {[%emt 0:00:47]} Qb6 {[%emt 0:00:11]} 12. b3 {[%emt 0:00:42]} Ne4 {[%emt 0:00:15]} 13. Nxe4 {[%emt 0:00:09]} Rxe4 {[%emt 0:00:05]} 14. Kf1 {[%emt 0:00:57]} Nd7 {[%emt 0:08:14]} 15. Nf3 {[%emt 0:05:32] [#]} a5 $146 {[%emt 0:12:53]} ({Predecessor:} 15... Re8 16. Rc1 Nf6 17. Bd3 Ne4 18. Bxe4 Rxe4 19. Nd2 Re8 20. Qf3 f5 21. Qg3 Bd7 {1-0 (87) Prraneeth,V (2409)-Vantika,A (2381) Budapest 2022}) 16. a4 {[%emt 0:22:16]} Ne5 {[%emt 0:11:25]} 17. Nd2 {[%emt 0:14:42]} Rd4 {[%emt 0:00:10]} 18. Be3 {[%emt 0:03:15]} Bf5 {[%emt 0:00:28]} 19. Bxd4 {[%emt 0:02:53]} cxd4 {[%emt 0:02:03]} 20. g4 {[%emt 0:02:48]} Bd7 {[%emt 0:01:15]} 21. f4 {[%emt 0:05:17]} d3 {[%emt 0:00:56]} 22. fxe5 {[%emt 0:00:18]} dxe2+ {[%emt 0:01:40]} 23. Qxe2 {[%emt 0:00:01]} Bxe5 {[%emt 0:13:35]} 24. Re1 {[%emt 0:00:23]} Rf8 {[%emt 0:01:31]} 25. Kg2 {[%emt 0:06:46]} Qd4 {[%emt 0:01:54]} 26. Rh4 {[%emt 0:04:55]} Qf4 {[%emt 0:02:38]} 27. Qe3 {[%emt 0:09:41] Against Qg3+} (27. Qd3 $1 $16) 27... g5 $1 $15 {[%emt 0:00:32][%mdl 64] Deflection. The board is on fire.} 28. Rhh1 {[%emt 0:07:16] Qxf4 is the strong threat.} ({Of course not} 28. Qxf4 Bxf4 29. Ne4 f5 30. Nxg5 Bxg5 $17) 28... Qxg4+ {[%emt 0:02:07]} 29. Kf1 {[%emt 0:00:00]} f6 {[%emt 0:05:04][%mdl 1024] Black has strong compensation.} (29... f5 $5 {[%cal Rf5f4]} 30. Re2 Bf6 $15) 30. Re2 {[%emt 0:01:21]} (30. Ne4 $15) 30... Bf5 $17 {[%emt 0:04:24][%cal Ob7b6] Black is more active.} 31. Rg1 $2 {[%emt 0:03:02]} (31. Rf2 $17 {was necessary.}) 31... Qh4 $1 $19 {[%emt 0:01:03]} 32. Qf2 {[%emt 0:01:14] And now Qxh4 would win.} Bh3+ {[%emt 0:00:28]} ({Better is} 32... Qh3+ $19 33. Ke1 Qc3 $1) 33. Ke1 $17 {[%emt 0:00:01] aiming for Qxh4.} Qxh6 {[%emt 0:03:03]} 34. Kd1 {[%emt 0:01:37]} (34. Rh1 $17) 34... Qg6 $19 {[%emt 0:01:28]} 35. Qe3 {[%emt 0:01:18]} Bf5 {[%emt 0:00:41]} 36. Nf3 $2 {[%emt 0:00:34] [#]} (36. Ne4 {is a better defense.} g4 37. Nd2) 36... Bf4 $1 {[%emt 0:01:19]} 37. Qd4 {[%emt 0:00:26] [#]} (37. Nh4 Bxe3 38. Nxg6 Bxg1 39. Ne7+ Kf7 40. Nxf5) 37... Bg4 $1 {[%emt 0:00:31][%cal Rg6b1][%mdl 512] This bishop pair is nice. Black is clearly winning.} 38. Nd2 {[%emt 0:00:35] Prevents Qb1+.} (38. Ke1 Bxf3) 38... Bxe2+ {[%emt 0:00:13]} 39. Kxe2 {[%emt 0:00:02]} Re8+ {[%emt 0:00:17]} 40. Kd1 {[%emt 0:00:45]} Be3 {[%emt 0:00:42] Weighted Error Value: White=0.88/Black=0.12 (very precise)} 0-1

[Event "26th Womens ECCC 2022"]
[Site "Mayrhofen"]
[Date "2022.10.06"]
[Round "4.10"]
[White "Kiolbasa, Oliwia"]
[Black "Fataliyeva, Ulviyya"]
[Result "1/2-1/2"]
[ECO "B12"]
[WhiteElo "2404"]
[BlackElo "2422"]
[Annotator "TA"]
[PlyCount "83"]
[EventDate "2022.10.03"]
[EventType "team-tourn"]
[EventCountry "AUT"]
[SourceTitle "playchess.com"]
[Source "ChessBase"]
[SourceQuality "1"]
[TimeControl "40/5400+30:1800+30"]

{[%evp 11,83,10,0,0,12,18,19,14,18,17,9,0,0,0,0,-5,0,-14,-15,-21,-21,-12,0,-14,-13,-21,23,24,12,2,2,5,14,0,25,0,0,0,0,0,0,0,0,0,0,-4,0,-13,-3,-4,0,0,0,0,0,0,0,0,0,0,0,0,15,16,12,0,0,0,0,0,0,0,0,0]} 1. e4 {[%emt 0:00:03]} c6 {[%emt 0:00:03]} 2. d4 {[%emt 0:00:08]} d5 {[%emt 0:00:05]} 3. e5 {[%emt 0:00:06]} Bf5 {[%emt 0:00:04]} 4. h4 {[%emt 0:00:15]} h5 {[%emt 0:00:06]} 5. Bd3 {[%emt 0:00:18]} Bxd3 {[%emt 0:00:06]} 6. Qxd3 {[%emt 0:00:07]} e6 {[%emt 0:00:06]} 7. Bg5 {[%emt 0:01:20] B12: Caro-Kann: Advance Variation.} Be7 {[%emt 0:00:05]} 8. Nf3 {[%emt 0:02:27]} Nh6 {[%emt 0:00:04]} 9. Nc3 {[%emt 0:09:11]} Nf5 {[%emt 0:00:17]} 10. Ne2 {[%emt 0:02:03]} c5 {[%emt 0:00:10]} 11. c3 {[%emt 0:09:31]} cxd4 {[%emt 0:00:05]} 12. Nexd4 {[%emt 0:01:28]} Nxd4 {[%emt 0:00:05]} 13. cxd4 {[%emt 0:02:02]} Qa5+ {[%emt 0:00:03] [#]} 14. Kf1 $146 {[%emt 0:04:10]} ({Predecessor:} 14. Ke2 Qa6 15. Qxa6 Nxa6 16. Rhc1 f6 17. Bf4 Kd7 18. Rc3 Rac8 19. Rac1 Rxc3 20. Rxc3 {½-½ (41) Ter Sahakyan,S (2611)-Pantsulaia,L (2614) Mumbai 2019}) 14... Qa6 {[%emt 0:00:19]} 15. Qxa6 {[%emt 0:04:58]} (15. Rd1 {seems wilder.} Kd7 16. Ke2 Nc6 17. Bxe7 Nxe7 18. Rc1) 15... Nxa6 {[%emt 0:00:13]} 16. Rc1 $1 {[%emt 0:00:11]} Kd7 {[%emt 0:00:56]} 17. Ke2 {[%emt 0:04:54]} Rac8 {[%emt 0:01:51]} 18. a3 {[%emt 0:07:39]} Rc7 {[%emt 0:07:26]} 19. Rxc7+ {[%emt 0:03:35]} Nxc7 {[%emt 0:00:06]} 20. Rc1 {[%emt 0:00:29] [#] aiming for Bxe7.} Bxg5 {[%emt 0:06:43]} 21. Nxg5 $11 {[%emt 0:03:23][%mdl 4096] Endgame KRN-KRN} f6 {[%emt 0:01:15]} 22. Nf3 {[%emt 0:03:13]} Rh6 {[%emt 0:01:43]} 23. Kd3 {[%emt 0:04:50]} Na8 {[%emt 0:03:37] The position is equal.} 24. Rg1 {[%emt 0:05:53]} Nb6 {[%emt 0:03:10]} 25. g4 {[%emt 0:10:00]} hxg4 {[%emt 0:00:26]} 26. Rxg4 {[%emt 0:00:09]} Rh7 {[%emt 0:00:07]} 27. h5 {[%emt 0:03:31]} Ke7 {[%emt 0:10:08]} 28. Nd2 {[%emt 0:01:52]} Kf8 {[%emt 0:04:56]} 29. Rh4 {[%emt 0:02:39]} g5 {[%emt 0:07:17]} 30. Rh1 {[%emt 0:01:41]} fxe5 {[%emt 0:11:16]} 31. dxe5 {[%emt 0:00:07]} Rf7 {[%emt 0:00:04]} 32. h6 {[%emt 0:06:13] [#] h7 is the strong threat.} Kg8 {[%emt 0:00:28]} 33. Rg1 {[%emt 0:00:06]} Kh7 {[%emt 0:00:41]} 34. Rxg5 {[%emt 0:00:13]} Kxh6 {[%emt 0:00:17]} 35. Rg8 {[%emt 0:00:32]} Nd7 {[%emt 0:03:46]} 36. Re8 {[%emt 0:00:32]} Kg5 {[%emt 0:02:12]} 37. Ke3 {[%emt 0:02:15]} Kf5 $1 {[%emt 0:17:35]} (37... Nxe5 $2 38. f4+ Kf6 39. fxe5+ Kxe5 40. Nf3+ Kf6 41. Rh8 $18) 38. f4 {[%emt 0:00:59] Black must now prevent Nf3.} Nf8 $1 {[%emt 0:04:01]} 39. Nf3 {[%emt 0:05:08] And now Ng5 would win.} Kg4 {[%emt 0:00:13]} 40. Nh2+ {[%emt 0:01:31]} Kg3 {[%emt 0:02:05]} 41. Nf1+ {[%emt 0:02:39]} Kg4 {[%emt 0:08:54]} 42. Nh2+ {[%emt 0:00:33] An even fight not without its subleties.  Weighted Error Value: White=0.04 (flawless) /Black=0.04 (flawless)} 1/2-1/2

[Event "26th Womens ECCC 2022"]
[Site "Mayrhofen"]
[Date "2022.10.06"]
[Round "4.11"]
[White "Mammadova, Gulnar"]
[Black "Cyfka, Karina"]
[Result "1/2-1/2"]
[ECO "C45"]
[WhiteElo "2389"]
[BlackElo "2347"]
[Annotator "TA"]
[PlyCount "91"]
[EventDate "2022.10.03"]
[EventType "team-tourn"]
[EventCountry "AUT"]
[SourceTitle "playchess.com"]
[Source "ChessBase"]
[SourceQuality "1"]
[TimeControl "40/5400+30:1800+30"]

{[%evp 14,91,-21,-25,-28,-31,20,-4,0,-15,-23,-35,44,20,36,25,75,32,21,31,36,28,28,26,21,12,15,4,0,0,0,-36,-32,-95,-93,-93,-93,-119,-100,-105,-108,-185,-34,-162,0,0,0,-148,-147,-236,-61,-97,-1,-7,0,0,0,0,0,-29,-35,-211,-213,-220,-164,-321,-72,-64,-61,-67,-66,-67,0,0,0,0,0,0,0,0]} 1. e4 {[%emt 0:00:02]} e5 {[%emt 0:00:06]} 2. Nf3 {[%emt 0:00:04]} Nc6 {[%emt 0:00:14]} 3. d4 {[%emt 0:00:16]} exd4 {[%emt 0:00:21]} 4. Nxd4 {[%emt 0:00:09]} Nf6 {[%emt 0:00:34]} 5. Nxc6 {[%emt 0:00:10]} bxc6 {[%emt 0:00:07]} 6. e5 {[%emt 0:00:21]} Qe7 {[%emt 0:00:24]} 7. Qe2 {[%emt 0:00:08]} Nd5 {[%emt 0:00:42]} 8. h4 {[%emt 0:00:16]} Qe6 {[%emt 0:00:05] C45: Scotch Game.} 9. c4 {[%emt 0:01:40]} Bb4+ {[%emt 0:06:07]} (9... Nb6 $1 $15) 10. Nd2 {[%emt 0:03:17]} Nf4 {[%emt 0:10:52]} 11. Qe4 {[%emt 0:03:17]} Ng6 {[%emt 0:02:33]} (11... Qg4 $2 12. g3 $18) 12. f4 {[%emt 0:04:48] [#]} f5 $146 {[%emt 0:25:10]} (12... Qg4 $15) ({Predecessor:} 12... Ne7 13. a3 Bxd2+ 14. Bxd2 Rb8 15. O-O-O c5 16. Bd3 Bb7 17. Qe2 Nf5 18. Qg4 g6 {1-0 (30) Jober,R (1783)-Maugenest,G (2052) Europe Echecs INT 2021}) 13. Qf3 {[%emt 0:01:13]} Rb8 {[%emt 0:02:20]} 14. h5 {[%emt 0:06:44]} Ne7 {[%emt 0:06:58]} (14... Nf8 $1 $11) 15. b3 {[%emt 0:02:42]} (15. a3 $5 {[%cal Ra3b4]} Bxd2+ 16. Bxd2 $16 (16. Kxd2 c5 $11)) 15... c5 {[%emt 0:06:42]} 16. Bb2 {[%emt 0:07:25][%cal Oh5h6]} a5 {[%emt 0:05:10][%cal Oa5a4]} 17. Rd1 {[%emt 0:08:34]} a4 {[%emt 0:06:02]} 18. bxa4 {[%emt 0:03:43]} Bb7 {[%emt 0:01:59]} 19. Qe3 {[%emt 0:02:29]} Bc6 {[%emt 0:05:20]} 20. Kf2 {[%emt 0:02:41]} Bxa4 {[%emt 0:00:42]} 21. Nb3 {[%emt 0:00:22]} Nc6 {[%emt 0:01:48][%cal Be7c6,Bc6a5,Ba5c4][%mdl 32]} 22. Bd3 {[%emt 0:04:04]} Na5 {[%emt 0:05:04]} 23. g4 {[%emt 0:08:42]} ({White should play} 23. Rc1 $15) 23... Nxc4 $17 {[%emt 0:03:07]} 24. Bxc4 {[%emt 0:07:23]} Qxc4 {[%emt 0:00:05]} 25. Rc1 {[%emt 0:02:59] Inhibits Qc2+.} Qe6 {[%emt 0:02:13]} 26. gxf5 {[%emt 0:05:43]} Qxf5 {[%emt 0:00:22]} 27. Rhg1 {[%emt 0:00:14]} (27. e6 $17 Bc6 28. exd7+ Kxd7 29. Rhg1 (29. Rhd1+ $2 Kc8 $19) 29... Qxh5 30. Rxg7+ Kc8 31. Kg3) 27... Rg8 $2 {[%emt 0:04:22]} ({Inferior is} 27... O-O 28. e6 g6 29. hxg6 $11) (27... Rf8 $19 28. e6 dxe6 29. Rxg7 Bxb3 30. axb3 Rd8) 28. Rg5 {[%emt 0:02:31] [#]} (28. e6 $1 $15 Qxe6 29. Qxe6+ dxe6 30. Be5) 28... Qf7 $2 {[%emt 0:01:05]} (28... Qe6 $1 $19 29. f5 Qd5) 29. e6 $11 {[%emt 0:02:15] The board is on fire.} dxe6 {[%emt 0:00:08]} 30. Re5 {[%emt 0:01:05]} (30. Be5 $11 {remains equal.}) 30... Bd7 $17 {[%emt 0:01:48]} 31. Rc2 {[%emt 0:03:22]} (31. Qe4 $17 {is a better defense.}) 31... Rf8 $2 {[%emt 0:00:49]} (31... g5 $1 $19 {[%cal Rg5f4]} 32. Nxc5 gxf4) 32. Kg3 {[%emt 0:02:03] [#]} c4 {[%emt 0:01:19]} (32... g5 $1 $17 {[%cal Rg5f4]} 33. Rxg5 Rb5) 33. Nc5 $1 $11 {[%emt 0:03:33][%cal Rc5e6]} Bxc5 {[%emt 0:00:34]} 34. Rxc5 {[%emt 0:00:05]} Rb5 {[%emt 0:01:13]} 35. Rxb5 {[%emt 0:04:27]} Bxb5 {[%emt 0:00:02]} 36. Ba3 {[%emt 0:00:12]} Qf5 {[%emt 0:00:36] Against Qe4} 37. Rb2 $2 {[%emt 0:07:56]} (37. Bxf8 $15 Qxc2 38. Bxg7) 37... Rf6 $19 {[%emt 0:00:09]} 38. Qf3 {[%emt 0:00:17] Threatens to win with Qa8+.} c6 {[%emt 0:00:38]} 39. Bd6 $2 {[%emt 0:01:12]} (39. Bb4) 39... Qd3 $2 {[%emt 0:01:06]} (39... c3 $1 $19 {[%cal Rc3b2] is more deadly.} 40. Rf2 c2) 40. Be5 $17 {[%emt 0:00:18]} Rf5 {[%emt 0:00:40] And now ...Rxh5 would win.} 41. a4 $1 {[%emt 0:31:04]} Qxf3+ $1 {[%emt 0:03:33]} 42. Kxf3 {[%emt 0:00:00]} Bxa4 {[%emt 0:00:04]} (42... c3 $1 $15 43. Bxc3 Bxa4) 43. Rb8+ $11 {[%emt 0:00:00] The position is equal.} Kd7 {[%emt 0:00:06] aiming for ...c5.} 44. Rb7+ {[%emt 0:00:00]} Kc8 {[%emt 0:01:26]} 45. Rb8+ {[%emt 0:00:00]} Kd7 {[%emt 0:00:03] White must now prevent ...c5.} 46. Rb7+ {[%emt 0:00:00] Weighted Error Value: White=0.32/Black=0.36} 1/2-1/2

[Event "26th Womens ECCC 2022"]
[Site "Mayrhofen"]
[Date "2022.10.06"]
[Round "4.12"]
[White "Majdan, Joanna"]
[Black "Balajayeva, Khanim"]
[Result "1-0"]
[ECO "C26"]
[WhiteElo "2301"]
[BlackElo "2384"]
[Annotator "TA"]
[PlyCount "89"]
[EventDate "2022.10.03"]
[EventType "team-tourn"]
[EventCountry "AUT"]
[SourceTitle "playchess.com"]
[Source "ChessBase"]
[SourceQuality "1"]
[TimeControl "40/5400+30:1800+30"]

{[%evp 9,89,-8,0,25,10,19,4,22,39,40,93,121,84,99,139,135,167,145,243,188,252,270,263,264,264,264,261,266,346,324,347,343,454,437,445,442,435,448,454,439,689,676,822,821,777,781,733,306,554,523,704,708,599,423,440,416,1020,996,1035,964,938,929,1050,1033,1238,1223,1363,1331,1420,1194,1056,996,4565,2037,29969,29964,29973,29974,29973,29973,29957,5812]} 1. e4 {[%emt 0:00:03]} e5 {[%emt 0:00:03]} 2. Nc3 {[%emt 0:00:09]} Nf6 {[%emt 0:01:00]} 3. d4 {[%emt 0:00:18]} exd4 {[%emt 0:01:07]} 4. Qxd4 {[%emt 0:00:07]} Nc6 {[%emt 0:00:10]} 5. Qd3 {[%emt 0:00:15]} Bb4 {[%emt 0:04:26]} 6. Bd2 {[%emt 0:01:07] C26: Vienna Game: 2...Nf6, sidelines .} O-O {[%emt 0:03:44]} 7. O-O-O {[%emt 0:01:12]} Re8 {[%emt 0:01:01]} 8. Nge2 {[%emt 0:00:38] The position is equal.} d6 {[%emt 0:14:28]} 9. Bg5 {[%emt 0:02:06][%cal Bd2g5,Bg5h4,Bh4g3][%mdl 32]} Bxc3 {[%emt 0:05:47]} ({Black should play} 9... Bc5 $14) 10. Nxc3 $16 {[%emt 0:00:31]} h6 {[%emt 0:00:04]} 11. Bh4 {[%emt 0:13:03]} Ne5 {[%emt 0:13:13] [#]} 12. Qd4 $146 {[%emt 0:02:51]} ({Predecessor:} 12. Qg3 Ng6 13. Bxf6 Qxf6 14. Nd5 Qd8 15. Bd3 c6 16. Nc3 b5 17. h4 b4 18. Ne2 {½-½ (78) Gong,Q (2348)-Sihite,C (2245) Ha Long 2022}) 12... g5 {[%emt 0:06:11] [#]} 13. Bg3 {[%emt 0:00:07]} Qe7 {[%emt 0:00:04]} (13... Bd7 $16 {was necessary.} 14. h4 Nh5) 14. f3 {[%emt 0:03:24]} Ng6 {[%emt 0:01:49]} (14... Qf8 $142 15. h4 g4) 15. Bb5 $18 {[%emt 0:04:58]} Bd7 {[%emt 0:05:49]} 16. Bxd7 {[%emt 0:02:44]} Nxd7 {[%emt 0:00:03]} 17. Nd5 {[%emt 0:00:59][%csl LRc7,LRe7] Against Qf6} Qd8 {[%emt 0:00:05]} 18. Kb1 {[%emt 0:04:53]} Nde5 {[%emt 0:03:20]} 19. h4 {[%emt 0:05:44]} gxh4 {[%emt 0:11:46]} 20. Bf2 {[%emt 0:01:59]} Kh7 {[%emt 0:02:29]} 21. f4 {[%emt 0:05:13][%cal Bf3f4,Bf4f5][%mdl 32]} Ng4 {[%emt 0:01:16]} 22. f5 {[%emt 0:01:14][%mdl 64] Deflection} N6e5 {[%emt 0:00:14]} 23. Bxh4 {[%emt 0:02:26]} f6 {[%emt 0:01:38]} 24. Qd2 {[%emt 0:06:12]} Rf8 {[%emt 0:01:01]} (24... Nf7 $142 25. Qc3 Re5) 25. Bg3 {[%emt 0:02:28]} Nf7 {[%emt 0:05:34]} 26. Rh4 {[%emt 0:01:45]} Rg8 {[%emt 0:01:23]} 27. Rdh1 {[%emt 0:01:51]} c6 {[%emt 0:02:42]} 28. Ne3 {[%emt 0:05:33]} (28. Nf4 $142) 28... Nxe3 $2 {[%emt 0:01:51]} (28... Nge5) 29. Qxe3 {[%emt 0:00:46][%cal Rh4h6] White threatens Rxh6+ and mate.} Kg7 {[%emt 0:00:03]} 30. Bf4 {[%emt 0:04:26][%cal Rf4h6]} Kf8 {[%emt 0:00:13]} 31. Bxh6+ {[%emt 0:00:13]} Ke7 {[%emt 0:00:04]} 32. Bf4 {[%emt 0:02:38] Threatens to win with Rh7.} ({Don't do} 32. Qb3 Qd7 33. Be3 Rg7 $18) 32... Rxg2 {[%emt 0:01:15]} (32... Rg7 $142 33. Rh7 Qg8) 33. Qb3 {[%emt 0:03:04]} Qd7 {[%emt 0:04:35] Against Qe6+} 34. Rh7 {[%emt 0:00:51]} Rf8 {[%emt 0:00:49]} 35. Bh6 {[%emt 0:01:27] Black must now prevent e5.} Rgg8 {[%emt 0:03:02]} 36. a3 {[%emt 0:01:43]} b6 {[%emt 0:01:04]} 37. Bxf8+ {[%emt 0:00:17]} Rxf8 {[%emt 0:00:03]} 38. Rg1 {[%emt 0:00:21]} d5 {[%emt 0:02:17]} 39. Rgg7 {[%emt 0:02:02]} Ke8 {[%emt 0:01:17]} 40. exd5 {[%emt 0:02:22]} cxd5 {[%emt 0:00:11]} 41. Qc3 {[%emt 0:32:06]} (41. Qg3 $142 Qd6 42. Qxd6 Nxd6 43. Re7+ Kd8 44. Rd7+ Kc8 45. Rxd6) 41... d4 {[%emt 0:05:12]} 42. Qf3 {[%emt 0:00:00] White mates.} Kd8 {[%emt 0:00:55]} 43. Qa8+ {[%emt 0:00:00]} Ke7 {[%emt 0:00:04]} 44. Qe4+ {[%emt 0:00:00]} Kd8 {[%emt 0:00:05]} 45. Qe6 {[%emt 0:00:00] Black did not feel at home in the position after the opening.  Weighted Error Value: White=0.32/Black=0.74} 1-0